[Event "Early-Titled-Tuesday-Blitz-September-05-2023"]
[Site "Chess.com"]
[Date "2023.09.05"]
[Round "9"]
[White "kikoveiga"]
[Black "viktorgen2021"]
[Result "0-1"]
[WhiteElo "2594"]
[BlackElo "2495"]
[TimeControl "180+1"]
[EndTime "9:42:52 PDT"]
[Termination "viktorgen2021 won by resignation"]

1. c4 {[%clk 0:02:30.6]} 1... Nf6 {[%clk 0:02:59.8]} 2. Nc3 {[%clk 0:02:19.5]}
2... g6 {[%clk 0:02:59.9]} 3. e4 {[%clk 0:02:19.6]} 3... d6 {[%clk 0:02:59.8]}
4. g3 {[%clk 0:02:19.8]} 4... Bg7 {[%clk 0:03:00.4]} 5. Bg2 {[%clk 0:02:20.5]}
5... O-O {[%clk 0:03:01]} 6. Nge2 {[%clk 0:02:21.2]} 6... Nc6 {[%clk 0:03:01.6]}
7. O-O {[%clk 0:02:21.9]} 7... e5 {[%clk 0:03:02.1]} 8. Rb1 {[%clk 0:02:21.3]}
8... Nd7 {[%clk 0:02:59.6]} 9. b4 {[%clk 0:02:20.6]} 9... Nd4 {[%clk 0:02:59.8]}
10. d3 {[%clk 0:02:19]} 10... a5 {[%clk 0:02:55.9]} 11. a3 {[%clk 0:02:17.4]}
11... axb4 {[%clk 0:02:55.3]} 12. axb4 {[%clk 0:02:18.3]} 12... c6 {[%clk
0:02:50.4]} 13. Be3 {[%clk 0:02:17.1]} 13... Nxe2+ {[%clk 0:02:35.9]} 14. Qxe2
{[%clk 0:02:11.2]} 14... f5 {[%clk 0:02:36.1]} 15. exf5 {[%clk 0:01:49.2]} 15...
gxf5 {[%clk 0:02:34.5]} 16. Rfc1 {[%clk 0:01:32.6]} 16... Nf6 {[%clk 0:02:27.4]}
17. b5 {[%clk 0:01:24.8]} 17... Bd7 {[%clk 0:02:23.9]} 18. bxc6 {[%clk
0:01:23.8]} 18... bxc6 {[%clk 0:02:24.8]} 19. Bb6 {[%clk 0:01:12.3]} 19... Qe7
{[%clk 0:02:23.3]} 20. d4 {[%clk 0:01:07.3]} 20... f4 {[%clk 0:02:16.8]} 21. c5
{[%clk 0:01:00]} 21... Ng4 {[%clk 0:01:53.5]} 22. cxd6 {[%clk 0:00:59]} 22...
Qg5 {[%clk 0:01:48.3]} 23. h3 {[%clk 0:00:31.8]} 23... fxg3 {[%clk 0:01:44]} 24.
hxg4 {[%clk 0:00:31.4]} 24... Bxg4 {[%clk 0:01:11.2]} 25. Qc4+ {[%clk
0:00:30.4]} 25... Kh8 {[%clk 0:01:08.7]} 26. Ne4 {[%clk 0:00:30.3]} 26... gxf2+
{[%clk 0:01:03.4]} 27. Kf1 {[%clk 0:00:30.7]} 27... Qh4 {[%clk 0:00:53.9]} 28.
dxe5 {[%clk 0:00:28.9]} 28... Bh3 {[%clk 0:00:19.8]} 29. Nxf2 {[%clk 0:00:22.3]}
29... Bxg2+ {[%clk 0:00:17.3]} 30. Kxg2 {[%clk 0:00:23.2]} 30... Qg5+ {[%clk
0:00:16.6]} 31. Kf1 {[%clk 0:00:19.7]} 31... Qxe5 {[%clk 0:00:16.3]} 32. d7
{[%clk 0:00:12.8]} 32... Rf4 {[%clk 0:00:16.2]} 33. Qxf4 {[%clk 0:00:10.3]}
33... Qxf4 {[%clk 0:00:15.6]} 34. d8=Q+ {[%clk 0:00:11.2]} 34... Rxd8 {[%clk
0:00:15.8]} 35. Bxd8 {[%clk 0:00:12.1]} 35... Bd4 {[%clk 0:00:15.9]} 36. Rc2
{[%clk 0:00:10.9]} 36... Qf5 {[%clk 0:00:16.3]} 37. Rbc1 {[%clk 0:00:10.2]}
37... c5 {[%clk 0:00:15.3]} 38. Ba5 {[%clk 0:00:09.1]} 38... Kg8 {[%clk
0:00:14.6]} 39. Be1 {[%clk 0:00:09.7]} 39... h5 {[%clk 0:00:11.8]} 40. Re2
{[%clk 0:00:07.6]} 40... h4 {[%clk 0:00:12]} 41. Rb1 {[%clk 0:00:07.2]} 41...
Qxb1 {[%clk 0:00:11.4]} 42. Kg2 {[%clk 0:00:06.4]} 42... Qf5 {[%clk 0:00:11.1]}
43. Ne4 {[%clk 0:00:06.8]} 43... Qg4+ {[%clk 0:00:10.9]} 44. Ng3 {[%clk
0:00:02]} 44... hxg3 {[%clk 0:00:09.7]} 45. Re8+ {[%clk 0:00:02.9]} 45... Kf7
{[%clk 0:00:09.9]} 46. Bxg3 {[%clk 0:00:03]} 46... Kxe8 {[%clk 0:00:09.4]} 0-1

[Event "Early-Titled-Tuesday-Blitz-September-05-2023"]
[Site "Chess.com"]
[Date "2023.09.05"]
[Round "9"]
[White "Eloist"]
[Black "KatakuriDono"]
[Result "1-0"]
[WhiteElo "2443"]
[BlackElo "2323"]
[TimeControl "180+1"]
[EndTime "9:42:52 PDT"]
[Termination "Eloist won by resignation"]

1. e4 {[%clk 0:03:00.9]} 1... e5 {[%clk 0:02:59.9]} 2. Bc4 {[%clk 0:02:59.9]}
2... Nf6 {[%clk 0:02:59.5]} 3. d3 {[%clk 0:03:00.2]} 3... Nc6 {[%clk 0:02:59.4]}
4. Nf3 {[%clk 0:03:00.4]} 4... Be7 {[%clk 0:02:58.4]} 5. O-O {[%clk 0:03:00.4]}
5... O-O {[%clk 0:02:58.6]} 6. Re1 {[%clk 0:03:00.6]} 6... d6 {[%clk 0:02:55.2]}
7. a4 {[%clk 0:03:00.1]} 7... Kh8 {[%clk 0:02:48.2]} 8. a5 {[%clk 0:02:59.4]}
8... a6 {[%clk 0:02:46.4]} 9. Nc3 {[%clk 0:02:58]} 9... Ng8 {[%clk 0:02:45.6]}
10. Nd5 {[%clk 0:02:57.3]} 10... f5 {[%clk 0:02:45.3]} 11. c3 {[%clk 0:02:43.6]}
11... fxe4 {[%clk 0:02:42.9]} 12. dxe4 {[%clk 0:02:43]} 12... Nf6 {[%clk
0:02:38.5]} 13. Nxf6 {[%clk 0:02:33.9]} 13... Bxf6 {[%clk 0:02:35.2]} 14. h3
{[%clk 0:02:28.8]} 14... Ne7 {[%clk 0:02:26]} 15. Ng5 {[%clk 0:02:21.9]} 15...
Qe8 {[%clk 0:02:17.5]} 16. Ne6 {[%clk 0:02:15.7]} 16... Bxe6 {[%clk 0:02:17.6]}
17. Bxe6 {[%clk 0:02:15.4]} 17... Ng6 {[%clk 0:02:18.2]} 18. Bf5 {[%clk
0:02:05.1]} 18... Nh4 {[%clk 0:02:12.8]} 19. Bg4 {[%clk 0:02:04]} 19... Qf7
{[%clk 0:02:00.7]} 20. g3 {[%clk 0:02:00.7]} 20... Ng6 {[%clk 0:02:00.1]} 21.
Be3 {[%clk 0:01:50.4]} 21... Ne7 {[%clk 0:01:47.6]} 22. Kg2 {[%clk 0:01:44.4]}
22... d5 {[%clk 0:01:38.8]} 23. Qb3 {[%clk 0:01:36.3]} 23... d4 {[%clk
0:01:21.3]} 24. Qxf7 {[%clk 0:01:34.3]} 24... Rxf7 {[%clk 0:01:22.2]} 25. cxd4
{[%clk 0:01:32]} 25... exd4 {[%clk 0:01:23.1]} 26. Bd2 {[%clk 0:01:30.9]} 26...
Ng6 {[%clk 0:01:13.9]} 27. f4 {[%clk 0:01:30.1]} 27... c5 {[%clk 0:01:09.2]} 28.
Rac1 {[%clk 0:01:28.2]} 28... Be7 {[%clk 0:01:05.5]} 29. Be6 {[%clk 0:01:21.6]}
29... Rf6 {[%clk 0:00:53.7]} 30. Bd5 {[%clk 0:01:21]} 30... Rb8 {[%clk
0:00:51.7]} 31. e5 {[%clk 0:01:19.2]} 31... Rff8 {[%clk 0:00:51.3]} 32. f5
{[%clk 0:01:17.2]} 32... Rfd8 {[%clk 0:00:51]} 33. Bc4 {[%clk 0:01:00]} 33...
Nf8 {[%clk 0:00:47.2]} 34. Bf4 {[%clk 0:00:57.1]} 34... b5 {[%clk 0:00:42.8]}
35. axb6 {[%clk 0:00:50.1]} 35... Rxb6 {[%clk 0:00:42.4]} 36. b3 {[%clk
0:00:49.8]} 36... Nd7 {[%clk 0:00:23.5]} 37. Ra1 {[%clk 0:00:47.6]} 37... Nb8
{[%clk 0:00:23.6]} 38. g4 {[%clk 0:00:42.8]} 38... Bh4 {[%clk 0:00:22.4]} 39.
Bg3 {[%clk 0:00:40.9]} 39... Bxg3 {[%clk 0:00:22.3]} 40. Kxg3 {[%clk 0:00:41.8]}
40... d3 {[%clk 0:00:20]} 41. Rad1 {[%clk 0:00:37]} 41... d2 {[%clk 0:00:19.9]}
42. Re2 {[%clk 0:00:36.5]} 42... Nc6 {[%clk 0:00:20.3]} 43. Rexd2 {[%clk
0:00:32.4]} 43... Nd4 {[%clk 0:00:20.5]} 44. Kf4 {[%clk 0:00:23.9]} 44... h6
{[%clk 0:00:20.4]} 45. h4 {[%clk 0:00:21.3]} 45... a5 {[%clk 0:00:20.8]} 46. g5
{[%clk 0:00:20.5]} 46... hxg5+ {[%clk 0:00:20.4]} 47. hxg5 {[%clk 0:00:20.5]}
47... Rf8 {[%clk 0:00:21]} 48. Rh2+ {[%clk 0:00:20.1]} 48... Rh6 {[%clk
0:00:19]} 49. gxh6 {[%clk 0:00:19.6]} 49... gxh6 {[%clk 0:00:18.8]} 50. Rg1
{[%clk 0:00:17.8]} 50... Rxf5+ {[%clk 0:00:16.8]} 51. Ke4 {[%clk 0:00:17.7]}
51... h5 {[%clk 0:00:16.9]} 52. Rg8+ {[%clk 0:00:16.3]} 52... Kh7 {[%clk
0:00:17]} 53. Rhg2 {[%clk 0:00:16.1]} 53... Rf1 {[%clk 0:00:16]} 54. R2g7+
{[%clk 0:00:15.5]} 54... Kh6 {[%clk 0:00:16.3]} 55. Rg6+ {[%clk 0:00:15.5]}
55... Kh7 {[%clk 0:00:16.7]} 56. Bxf1 {[%clk 0:00:16.1]} 1-0

[Event "Early-Titled-Tuesday-Blitz-September-05-2023"]
[Site "Chess.com"]
[Date "2023.09.05"]
[Round "9"]
[White "banane_verte"]
[Black "03revilo"]
[Result "1-0"]
[WhiteElo "2604"]
[BlackElo "2452"]
[TimeControl "180+1"]
[EndTime "9:42:53 PDT"]
[Termination "banane_verte won by resignation"]

1. e4 {[%clk 0:02:59.2]} 1... c6 {[%clk 0:02:59.4]} 2. d4 {[%clk 0:02:58.4]}
2... d5 {[%clk 0:03:00.3]} 3. Nd2 {[%clk 0:02:56.3]} 3... dxe4 {[%clk
0:02:58.8]} 4. Nxe4 {[%clk 0:02:57.2]} 4... Bf5 {[%clk 0:02:58.9]} 5. Ng3 {[%clk
0:02:57]} 5... Bg6 {[%clk 0:02:59.3]} 6. h4 {[%clk 0:02:52.1]} 6... h6 {[%clk
0:02:58.8]} 7. Nf3 {[%clk 0:02:50.9]} 7... e6 {[%clk 0:02:58.6]} 8. Ne5 {[%clk
0:02:47.8]} 8... Bh7 {[%clk 0:02:58.6]} 9. Qh5 {[%clk 0:02:48.1]} 9... Qc7
{[%clk 0:02:49]} 10. Bf4 {[%clk 0:02:42.2]} 10... Nf6 {[%clk 0:02:47.6]} 11. Qf3
{[%clk 0:02:26.3]} 11... Bd6 {[%clk 0:02:45.6]} 12. O-O-O {[%clk 0:02:24.1]}
12... Nbd7 {[%clk 0:02:42.4]} 13. Nh5 {[%clk 0:02:01.2]} 13... Nxe5 {[%clk
0:02:06.1]} 14. Nxf6+ {[%clk 0:01:56.3]} 14... gxf6 {[%clk 0:02:05.3]} 15. dxe5
{[%clk 0:01:57]} 15... Bxe5 {[%clk 0:01:50.6]} 16. Bxh6 {[%clk 0:01:52.9]} 16...
Qb6 {[%clk 0:01:02.1]} 17. c3 {[%clk 0:01:40]} 17... Qa5 {[%clk 0:01:01.5]} 18.
Bc4 {[%clk 0:01:34.9]} 18... Ke7 {[%clk 0:00:26.8]} 19. g4 {[%clk 0:01:25.3]}
19... Rad8 {[%clk 0:00:20.8]} 20. g5 {[%clk 0:01:24.6]} 20... f5 {[%clk
0:00:17.2]} 21. h5 {[%clk 0:01:17]} 21... Rxd1+ {[%clk 0:00:16.2]} 22. Rxd1
{[%clk 0:01:16.6]} 22... Rd8 {[%clk 0:00:16]} 23. Bb3 {[%clk 0:01:01.5]} 23...
Rxd1+ {[%clk 0:00:14.4]} 24. Qxd1 {[%clk 0:01:02.4]} 24... Qc5 {[%clk
0:00:13.7]} 25. Qd2 {[%clk 0:00:36]} 25... Qd6 {[%clk 0:00:13.8]} 26. Qxd6+
{[%clk 0:00:27.4]} 26... Bxd6 {[%clk 0:00:14.7]} 27. Bg7 {[%clk 0:00:27.6]}
27... Bf4+ {[%clk 0:00:14.3]} 28. Kd1 {[%clk 0:00:27.5]} 28... Bxg5 {[%clk
0:00:14.1]} 29. Ke2 {[%clk 0:00:28]} 29... Bf6 {[%clk 0:00:13.6]} 30. Bh6 {[%clk
0:00:26.1]} 30... e5 {[%clk 0:00:10.8]} 31. Be3 {[%clk 0:00:26.6]} 31... b6
{[%clk 0:00:10.1]} 32. Ba4 {[%clk 0:00:27.3]} 32... c5 {[%clk 0:00:09.9]} 33.
Bc6 {[%clk 0:00:25.4]} 33... f4 {[%clk 0:00:10]} 34. Bd2 {[%clk 0:00:25.2]}
34... Bf5 {[%clk 0:00:10.1]} 35. f3 {[%clk 0:00:24.9]} 35... Kd6 {[%clk
0:00:10.4]} 36. Bb7 {[%clk 0:00:23.3]} 36... Bg5 {[%clk 0:00:10.5]} 37. Be1
{[%clk 0:00:21.1]} 37... Be6 {[%clk 0:00:10.5]} 38. b3 {[%clk 0:00:20.4]} 38...
f5 {[%clk 0:00:10.7]} 39. c4 {[%clk 0:00:17.3]} 39... Bd7 {[%clk 0:00:10]} 40.
Bc3 {[%clk 0:00:16.7]} 40... Be8 {[%clk 0:00:09.9]} 41. Bc8 {[%clk 0:00:14.8]}
41... Bxh5 {[%clk 0:00:06]} 42. Bxf5 {[%clk 0:00:14.6]} 42... Be8 {[%clk
0:00:05.8]} 43. Be4 {[%clk 0:00:14.3]} 43... Bc6 {[%clk 0:00:06.1]} 44. Bxc6
{[%clk 0:00:12.3]} 44... Kxc6 {[%clk 0:00:06.6]} 45. Bxe5 {[%clk 0:00:12.9]}
45... a6 {[%clk 0:00:05.6]} 46. Kd3 {[%clk 0:00:13]} 46... b5 {[%clk 0:00:06]}
47. Ke4 {[%clk 0:00:13.3]} 47... bxc4 {[%clk 0:00:06.2]} 48. bxc4 {[%clk
0:00:14.2]} 48... Kb6 {[%clk 0:00:04.9]} 49. Bxf4 {[%clk 0:00:14.7]} 49... Be7
{[%clk 0:00:04.6]} 50. Bd2 {[%clk 0:00:15]} 50... Kc6 {[%clk 0:00:04.3]} 51. Ke5
{[%clk 0:00:13.8]} 51... Bd6+ {[%clk 0:00:04.5]} 52. Ke6 {[%clk 0:00:13.9]} 1-0

[Event "Early-Titled-Tuesday-Blitz-September-05-2023"]
[Site "Chess.com"]
[Date "2023.09.05"]
[Round "9"]
[White "Rutricks"]
[Black "CheckThis4"]
[Result "1-0"]
[WhiteElo "2663"]
[BlackElo "2662"]
[TimeControl "180+1"]
[EndTime "9:42:59 PDT"]
[Termination "Rutricks won on time"]

1. Nf3 {[%clk 0:02:57]} 1... e6 {[%clk 0:02:57.4]} 2. b3 {[%clk 0:02:57.2]} 2...
d5 {[%clk 0:02:51.8]} 3. Bb2 {[%clk 0:02:57.4]} 3... Nf6 {[%clk 0:02:52.4]} 4.
e3 {[%clk 0:02:55.8]} 4... Bd6 {[%clk 0:02:52.4]} 5. Be2 {[%clk 0:02:56.5]} 5...
O-O {[%clk 0:02:52.2]} 6. O-O {[%clk 0:02:56.7]} 6... c5 {[%clk 0:02:52.3]} 7.
c4 {[%clk 0:02:55.8]} 7... Nc6 {[%clk 0:02:52.1]} 8. cxd5 {[%clk 0:02:54.8]}
8... exd5 {[%clk 0:02:51.8]} 9. d4 {[%clk 0:02:54.7]} 9... cxd4 {[%clk
0:02:42.3]} 10. Nxd4 {[%clk 0:02:54.4]} 10... Re8 {[%clk 0:02:40.5]} 11. Nc3
{[%clk 0:02:48]} 11... Nxd4 {[%clk 0:02:26]} 12. Qxd4 {[%clk 0:02:48.9]} 12...
Be5 {[%clk 0:02:26.2]} 13. Qd3 {[%clk 0:02:49.3]} 13... Be6 {[%clk 0:02:16.3]}
14. Rad1 {[%clk 0:02:38.1]} 14... Qe7 {[%clk 0:02:06.2]} 15. f4 {[%clk
0:02:23.2]} 15... Bc7 {[%clk 0:01:54]} 16. Bf3 {[%clk 0:01:19.2]} 16... Rad8
{[%clk 0:01:40.9]} 17. Nb5 {[%clk 0:01:17.7]} 17... Bb6 {[%clk 0:01:37.7]} 18.
Ba3 {[%clk 0:01:17.2]} 18... Bc5 {[%clk 0:01:36.7]} 19. Bxc5 {[%clk 0:01:16.7]}
19... Qxc5 {[%clk 0:01:37.3]} 20. Nd4 {[%clk 0:01:17.6]} 20... Rc8 {[%clk
0:01:29.4]} 21. h3 {[%clk 0:01:07.4]} 21... Bd7 {[%clk 0:01:26.3]} 22. Rf2
{[%clk 0:01:04.6]} 22... Qc3 {[%clk 0:01:21.4]} 23. Re2 {[%clk 0:00:30.8]} 23...
h5 {[%clk 0:01:08.5]} 24. Kf2 {[%clk 0:00:25.2]} 24... h4 {[%clk 0:01:01.8]} 25.
Rc2 {[%clk 0:00:19.7]} 25... Qa5 {[%clk 0:00:49.8]} 26. Rdd2 {[%clk 0:00:09.2]}
26... Rcd8 {[%clk 0:00:43.6]} 27. Qc3 {[%clk 0:00:08.4]} 27... Qa6 {[%clk
0:00:40.2]} 28. a4 {[%clk 0:00:05.2]} 28... Ne4+ {[%clk 0:00:33.9]} 29. Bxe4
{[%clk 0:00:05.7]} 29... Rxe4 {[%clk 0:00:34.2]} 30. Qc7 {[%clk 0:00:05.7]}
30... Qf6 {[%clk 0:00:33.7]} 31. Nf3 {[%clk 0:00:04.7]} 31... Bf5 {[%clk
0:00:29.6]} 32. Rc5 {[%clk 0:00:03.7]} 32... Rde8 {[%clk 0:00:23.4]} 33. Rcxd5
{[%clk 0:00:02.8]} 33... Rxe3 {[%clk 0:00:19.9]} 34. Re5 {[%clk 0:00:02.9]}
34... R3xe5 {[%clk 0:00:16]} 35. fxe5 {[%clk 0:00:01.7]} 35... Qh6 {[%clk
0:00:15.5]} 36. Qd6 {[%clk 0:00:01.8]} 36... Re6 {[%clk 0:00:14.8]} 37. Qd8+
{[%clk 0:00:01.9]} 37... Kh7 {[%clk 0:00:14.8]} 38. Rd4 {[%clk 0:00:02.4]} 38...
g5 {[%clk 0:00:14.2]} 39. Nxg5+ {[%clk 0:00:02]} 39... Kg7 {[%clk 0:00:14.3]}
40. Nxe6+ {[%clk 0:00:02.6]} 40... Qxe6 {[%clk 0:00:13.2]} 41. Qg5+ {[%clk
0:00:02.5]} 41... Bg6 {[%clk 0:00:13.2]} 42. Qf6+ {[%clk 0:00:03.1]} 42... Qxf6+
{[%clk 0:00:13.5]} 43. exf6+ {[%clk 0:00:04]} 43... Kxf6 {[%clk 0:00:13.4]} 44.
Rxh4 {[%clk 0:00:04.8]} 44... Ke5 {[%clk 0:00:12.9]} 45. Rb4 {[%clk 0:00:05.4]}
45... b6 {[%clk 0:00:12.7]} 46. Ke3 {[%clk 0:00:06]} 46... f6 {[%clk 0:00:12.3]}
47. Rb5+ {[%clk 0:00:06.4]} 47... Ke6 {[%clk 0:00:12]} 48. a5 {[%clk 0:00:07]}
48... Be8 {[%clk 0:00:10]} 49. axb6 {[%clk 0:00:07]} 49... Bxb5 {[%clk
0:00:09.2]} 50. b7 {[%clk 0:00:07.5]} 1-0

[Event "Early-Titled-Tuesday-Blitz-September-05-2023"]
[Site "Chess.com"]
[Date "2023.09.05"]
[Round "9"]
[White "H_E_D_G_E_H_O_G"]
[Black "Khromkin"]
[Result "0-1"]
[WhiteElo "2079"]
[BlackElo "2397"]
[TimeControl "180+1"]
[EndTime "9:43:00 PDT"]
[Termination "Khromkin won on time"]

1. d4 {[%clk 0:02:54.8]} 1... d5 {[%clk 0:02:56.2]} 2. Nf3 {[%clk 0:02:54.4]}
2... a6 {[%clk 0:02:55.6]} 3. Bf4 {[%clk 0:02:53.2]} 3... c5 {[%clk 0:02:55]} 4.
e3 {[%clk 0:02:52.9]} 4... Nc6 {[%clk 0:02:55.6]} 5. c3 {[%clk 0:02:51]} 5...
Bg4 {[%clk 0:02:55.9]} 6. Nbd2 {[%clk 0:02:40]} 6... e6 {[%clk 0:02:50.3]} 7.
Qb3 {[%clk 0:02:32.5]} 7... Bxf3 {[%clk 0:02:33.9]} 8. Nxf3 {[%clk 0:02:06.2]}
8... Bd6 {[%clk 0:02:29]} 9. Qxb7 {[%clk 0:01:55.3]} 9... Na5 {[%clk 0:02:27.8]}
10. Qxa8 {[%clk 0:01:54.5]} 10... Qxa8 {[%clk 0:02:26.4]} 11. Bxd6 {[%clk
0:01:55.2]} 11... c4 {[%clk 0:02:18.2]} 12. b4 {[%clk 0:01:40.9]} 12... Nb7
{[%clk 0:02:15.7]} 13. Bc5 {[%clk 0:01:36.5]} 13... Ne7 {[%clk 0:02:12.4]} 14.
Be2 {[%clk 0:01:34.6]} 14... f6 {[%clk 0:02:09.7]} 15. O-O {[%clk 0:01:29.9]}
15... Kf7 {[%clk 0:02:09.7]} 16. a4 {[%clk 0:01:21.4]} 16... Rc8 {[%clk
0:02:04.8]} 17. Rfb1 {[%clk 0:01:19.5]} 17... Nf5 {[%clk 0:02:02.7]} 18. Bb6
{[%clk 0:01:15.4]} 18... Nfd6 {[%clk 0:01:53.8]} 19. b5 {[%clk 0:01:14.5]} 19...
a5 {[%clk 0:01:53.1]} 20. Bd1 {[%clk 0:01:11.7]} 20... Ne4 {[%clk 0:01:49]} 21.
Rc1 {[%clk 0:01:00.1]} 21... Nbd6 {[%clk 0:01:46.4]} 22. Ra2 {[%clk 0:00:56]}
22... g5 {[%clk 0:01:27.6]} 23. Ne1 {[%clk 0:00:55.7]} 23... Nf5 {[%clk
0:01:20.4]} 24. g3 {[%clk 0:00:43.3]} 24... Kg6 {[%clk 0:01:15.1]} 25. Ng2
{[%clk 0:00:42.2]} 25... h5 {[%clk 0:01:13.8]} 26. f3 {[%clk 0:00:41.4]} 26...
Ned6 {[%clk 0:01:13.6]} 27. Bc2 {[%clk 0:00:41.2]} 27... Kf7 {[%clk 0:01:10.4]}
28. e4 {[%clk 0:00:38.6]} 28... dxe4 {[%clk 0:01:07.2]} 29. fxe4 {[%clk
0:00:39.5]} 29... Nh6 {[%clk 0:01:07]} 30. Rf1 {[%clk 0:00:38]} 30... Nxe4
{[%clk 0:01:00]} 31. Bxe4 {[%clk 0:00:33.6]} 31... Qxe4 {[%clk 0:00:58.9]} 32.
Bxa5 {[%clk 0:00:34.5]} 32... h4 {[%clk 0:00:54.1]} 33. Re1 {[%clk 0:00:28.2]}
33... Qd3 {[%clk 0:00:52.5]} 34. b6 {[%clk 0:00:24.6]} 34... h3 {[%clk
0:00:50.1]} 35. Ne3 {[%clk 0:00:22.9]} 35... Nf5 {[%clk 0:00:44]} 36. Nxf5
{[%clk 0:00:22.2]} 36... exf5 {[%clk 0:00:44.6]} 37. b7 {[%clk 0:00:19]} 37...
Rb8 {[%clk 0:00:43.8]} 38. Rb2 {[%clk 0:00:18.7]} 38... Qf3 {[%clk 0:00:42.2]}
39. Reb1 {[%clk 0:00:16.2]} 39... Kg6 {[%clk 0:00:40.9]} 40. Rf1 {[%clk
0:00:13.8]} 40... Qe4 {[%clk 0:00:38.8]} 41. Rff2 {[%clk 0:00:11]} 41... Rxb7
{[%clk 0:00:36.7]} 42. Rxb7 {[%clk 0:00:10.2]} 42... Qxb7 {[%clk 0:00:35.5]} 43.
Bb4 {[%clk 0:00:09.7]} 43... Qe4 {[%clk 0:00:34.3]} 44. a5 {[%clk 0:00:10.2]}
44... f4 {[%clk 0:00:27.8]} 45. Bc5 {[%clk 0:00:10.5]} 45... Qb1+ {[%clk
0:00:21.6]} 46. Rf1 {[%clk 0:00:10.3]} 46... Qa2 {[%clk 0:00:22]} 47. Rf2 {[%clk
0:00:09.7]} 47... Qxa5 {[%clk 0:00:22.4]} 48. gxf4 {[%clk 0:00:10]} 48... g4
{[%clk 0:00:22.3]} 49. Bd6 {[%clk 0:00:07.8]} 49... Qa1+ {[%clk 0:00:20.5]} 50.
Rf1 {[%clk 0:00:07.6]} 50... Qxc3 {[%clk 0:00:21.1]} 51. f5+ {[%clk 0:00:08.4]}
51... Kh5 {[%clk 0:00:19.9]} 52. Rd1 {[%clk 0:00:08.3]} 52... Qc2 {[%clk
0:00:18.3]} 0-1

[Event "Early-Titled-Tuesday-Blitz-September-05-2023"]
[Site "Chess.com"]
[Date "2023.09.05"]
[Round "9"]
[White "Ali_rastbod"]
[Black "ContrVersia"]
[Result "1-0"]
[WhiteElo "2722"]
[BlackElo "2908"]
[TimeControl "180+1"]
[EndTime "9:43:09 PDT"]
[Termination "Ali_rastbod won on time"]

1. Nf3 {[%clk 0:03:00.1]} 1... d5 {[%clk 0:02:54.9]} 2. g3 {[%clk 0:02:59.8]}
2... Nd7 {[%clk 0:02:54.9]} 3. d4 {[%clk 0:02:59]} 3... Nb6 {[%clk 0:02:54.3]}
4. a4 {[%clk 0:02:58.2]} 4... a5 {[%clk 0:02:54.3]} 5. b3 {[%clk 0:02:58.8]}
5... Bf5 {[%clk 0:02:53.5]} 6. Ba3 {[%clk 0:02:59]} 6... Nf6 {[%clk 0:02:50.3]}
7. Bg2 {[%clk 0:02:58.7]} 7... h6 {[%clk 0:02:48.1]} 8. O-O {[%clk 0:02:58.3]}
8... e6 {[%clk 0:02:48.2]} 9. Bxf8 {[%clk 0:02:57.9]} 9... Rxf8 {[%clk
0:02:48.7]} 10. Na3 {[%clk 0:02:52.8]} 10... Ke7 {[%clk 0:02:46.5]} 11. c4
{[%clk 0:02:50.9]} 11... c6 {[%clk 0:02:42.4]} 12. Ne5 {[%clk 0:02:48.8]} 12...
Nbd7 {[%clk 0:02:40.4]} 13. Nd3 {[%clk 0:02:46.2]} 13... Qb6 {[%clk 0:02:35.9]}
14. e3 {[%clk 0:02:19.4]} 14... Rfd8 {[%clk 0:02:22.7]} 15. Rc1 {[%clk
0:02:06.2]} 15... Rac8 {[%clk 0:02:21]} 16. Re1 {[%clk 0:01:41.9]} 16... Kf8
{[%clk 0:01:31]} 17. h3 {[%clk 0:01:40.4]} 17... Qa6 {[%clk 0:01:25.7]} 18. Qd2
{[%clk 0:01:36.2]} 18... c5 {[%clk 0:01:19.3]} 19. Nb5 {[%clk 0:01:35.2]} 19...
cxd4 {[%clk 0:01:14.5]} 20. exd4 {[%clk 0:01:36.1]} 20... dxc4 {[%clk
0:01:07.6]} 21. bxc4 {[%clk 0:01:37]} 21... Nb6 {[%clk 0:01:05.9]} 22. Ne5
{[%clk 0:01:31.2]} 22... Nxa4 {[%clk 0:00:39.5]} 23. Qa2 {[%clk 0:00:57.7]}
23... Nb6 {[%clk 0:00:31.9]} 24. Qa3+ {[%clk 0:00:57.8]} 24... Kg8 {[%clk
0:00:31.9]} 25. Nd6 {[%clk 0:00:58.3]} 25... Rc7 {[%clk 0:00:30.3]} 26. Nb5
{[%clk 0:00:20.6]} 26... Nxc4 {[%clk 0:00:22.7]} 27. Nxc7 {[%clk 0:00:19.3]}
27... Nxa3 {[%clk 0:00:22.4]} 28. Nxa6 {[%clk 0:00:19.6]} 28... bxa6 {[%clk
0:00:22.4]} 29. g4 {[%clk 0:00:16.8]} 29... Bh7 {[%clk 0:00:20.6]} 30. Nc6
{[%clk 0:00:17.1]} 30... Rd6 {[%clk 0:00:15.6]} 31. Nxa5 {[%clk 0:00:14.3]}
31... Bg6 {[%clk 0:00:14]} 32. Nc4 {[%clk 0:00:10.9]} 32... Nxc4 {[%clk
0:00:12.4]} 33. Rxc4 {[%clk 0:00:11.8]} 33... Bd3 {[%clk 0:00:11.7]} 34. Ra4
{[%clk 0:00:10.8]} 34... Bb5 {[%clk 0:00:11.5]} 35. Rb4 {[%clk 0:00:10.5]} 35...
Nd5 {[%clk 0:00:11.8]} 36. Bxd5 {[%clk 0:00:09.1]} 36... Rxd5 {[%clk 0:00:12.7]}
37. Re5 {[%clk 0:00:06.6]} 37... Rd6 {[%clk 0:00:12.5]} 38. Rc5 {[%clk
0:00:05.9]} 38... g5 {[%clk 0:00:12.3]} 39. Kg2 {[%clk 0:00:06]} 39... Kg7
{[%clk 0:00:12.6]} 40. Kg3 {[%clk 0:00:06.6]} 40... Kg6 {[%clk 0:00:10.2]} 41.
f4 {[%clk 0:00:06.9]} 41... gxf4+ {[%clk 0:00:10.4]} 42. Kxf4 {[%clk 0:00:07.8]}
42... f6 {[%clk 0:00:11.1]} 43. h4 {[%clk 0:00:08.2]} 43... Rd7 {[%clk
0:00:08.9]} 44. Kg3 {[%clk 0:00:06.1]} 44... Kf7 {[%clk 0:00:08.2]} 45. Kf4
{[%clk 0:00:06]} 45... Kg7 {[%clk 0:00:07.3]} 46. Ke3 {[%clk 0:00:06.4]} 46...
Kg6 {[%clk 0:00:06.9]} 47. Rb1 {[%clk 0:00:06.5]} 47... Rb7 {[%clk 0:00:05.5]}
48. Rbc1 {[%clk 0:00:04.5]} 48... Rd7 {[%clk 0:00:05.3]} 49. Rc7 {[%clk
0:00:04.3]} 49... Rd8 {[%clk 0:00:02]} 50. R1c5 {[%clk 0:00:04.2]} 1-0